[Event "Open NK Rapid 2025 bord 26-50"]
[Site "Helmond, Netherlands"]
[Date "2025.05.03"]
[Round "2.9"]
[White "Van Beek, Harmen"]
[Black "Kshirsagar, Pranav"]
[Result "0-1"]
[TimeControl "15 min +5 sec increment"]
[WhiteFideId "40100022"]
[BlackFideId "1084011"]
[WhiteElo "1806"]
[BlackElo "2049"]

1. e4 {[%clk 00:15:07]} {[%emt 00:00:02]} c6 {[%clk 00:15:09]} {[%emt
00:00:02]} 2. d4 {[%clk 00:15:05]} {[%emt 00:00:06]} d5 {[%clk 00:15:13]}
{[%emt 00:00:02]} 3. exd5 {[%clk 00:15:04]} {[%emt 00:00:06]} cxd5 {[%clk
00:15:17]} {[%emt 00:00:01]} 4. Bd3 {[%clk 00:15:07]} {[%emt 00:00:02]} Nc6
{[%clk 00:15:20]} {[%emt 00:00:02]} 5. c3 {[%clk 00:15:11]} {[%emt 00:00:02]}
Nf6 {[%clk 00:15:24]} {[%emt 00:00:01]} 6. h3 {[%clk 00:15:14]} {[%emt
00:00:01]} g6 {[%clk 00:15:22]} {[%emt 00:00:07]} 7. Bf4 {[%clk 00:15:15]}
{[%emt 00:00:04]} Bg7 {[%clk 00:15:26]} {[%emt 00:00:01]} 8. Nf3 {[%clk
00:15:18]} {[%emt 00:00:03]} O-O {[%clk 00:15:28]} {[%emt 00:00:02]} 9. O-O
{[%clk 00:15:20]} {[%emt 00:00:03]} Re8 {[%clk 00:15:29]} {[%emt 00:00:05]} 10.
Re1 {[%clk 00:15:20]} {[%emt 00:00:05]} Qb6 {[%clk 00:15:01]} {[%emt 00:00:31]}
11. Qb3 {[%clk 00:15:22]} {[%emt 00:00:04]} Bf5 {[%clk 00:13:26]} {[%emt
00:01:40]} 12. Bxf5 {[%clk 00:12:44]} {[%emt 00:02:43]} gxf5 {[%clk 00:13:29]}
{[%emt 00:00:01]} 13. Ne5 {[%clk 00:11:51]} {[%emt 00:00:59]} Ne4 {[%clk
00:13:28]} {[%emt 00:00:06]} 14. Nd3 {[%clk 00:10:15]} {[%emt 00:01:41]} Qa6
{[%clk 00:11:07]} {[%emt 00:02:26]} 15. Qc2 {[%clk 00:07:48]} {[%emt 00:02:32]}
Rac8 {[%clk 00:11:09]} {[%emt 00:00:04]} 16. Qe2 {[%clk 00:07:47]} {[%emt
00:00:05]} Nd8 {[%clk 00:08:06]} {[%emt 00:03:08]} 17. Nb4 {[%clk 00:06:28]}
{[%emt 00:01:24]} Qa5 {[%clk 00:07:34]} {[%emt 00:00:38]} 18. Be5 {[%clk
00:03:17]} {[%emt 00:03:16]} f6 {[%clk 00:07:23]} {[%emt 00:00:16]} 19. Bh2
{[%clk 00:03:20]} {[%emt 00:00:01]} e6 {[%clk 00:06:01]} {[%emt 00:01:27]} 20.
f3 {[%clk 00:02:58]} {[%emt 00:00:27]} Ng5 {[%clk 00:06:06]} {[%emt 00:00:01]}
21. h4 {[%clk 00:02:14]} {[%emt 00:00:49]} Ngf7 {[%clk 00:06:09]} 22. Nd2
{[%clk 00:02:02]} {[%emt 00:00:18]} Nc6 {[%clk 00:04:46]} {[%emt 00:01:28]} 23.
Nb3 {[%clk 00:02:05]} {[%emt 00:00:02]} Qb6 {[%clk 00:04:50]} 24. Nxd5 {[%clk
00:01:36]} {[%emt 00:00:34]} exd5 {[%clk 00:04:47]} {[%emt 00:00:08]} 25. Qxe8+
{[%clk 00:01:37]} {[%emt 00:00:04]} Rxe8 {[%clk 00:04:51]} 26. Rxe8+ {[%clk
00:01:40]} {[%emt 00:00:02]} Bf8 {[%clk 00:04:55]} {[%emt 00:00:01]} 27. Nc5
{[%clk 00:01:01]} {[%emt 00:00:43]} Ncd8 {[%clk 00:03:01]} {[%emt 00:01:59]} 28.
Nd7 {[%clk 00:00:48]} {[%emt 00:00:18]} Qc6 {[%clk 00:02:51]} {[%emt 00:00:16]}
29. Rxf8+ {[%clk 00:00:13]} {[%emt 00:00:40]} Kg7 {[%clk 00:02:55]} 30. Re1
{[%clk 00:00:07]} {[%emt 00:00:11]} Qxd7 {[%clk 00:02:11]} {[%emt 00:00:49]} 31.
Ree8 {[%clk 00:00:11]} {[%emt 00:00:02]} h6 {[%clk 00:00:58]} {[%emt 00:01:17]}
32. Bf4 {[%clk 00:00:09]} {[%emt 00:00:06]} Ne6 {[%clk 00:00:43]} {[%emt
00:00:21]} 33. Rg8+ {[%clk 00:00:12]} {[%emt 00:00:02]} Kh7 {[%clk 00:00:47]}
34. Ref8 {[%clk 00:00:06]} {[%emt 00:00:12]} Nxf4 {[%clk 00:00:45]} {[%emt
00:00:07]} 0-1

[Event "Open NK Rapid 2025 bord 26-50"]
[Site "Helmond, Netherlands"]
[Date "2025.05.03"]
[Round "2.10"]
[White "Van Ravensteijn, Antal"]
[Black "Sleeckx, Alexander"]
[Result "1-0"]
[TimeControl "15 min +5 sec increment"]
[WhiteFideId "1060759"]
[BlackFideId "1091972"]
[WhiteElo "2048"]
[BlackElo "1813"]

1. Nf3 {[%clk 00:15:08]} {[%emt 00:00:01]} Nf6 {[%clk 00:15:07]} {[%emt
00:00:03]} 2. g3 {[%clk 00:15:10]} {[%emt 00:00:04]} b5 {[%clk 00:15:10]}
{[%emt 00:00:02]} 3. Bg2 {[%clk 00:15:13]} {[%emt 00:00:02]} Bb7 {[%clk
00:15:14]} 4. O-O {[%clk 00:15:15]} {[%emt 00:00:02]} e6 {[%clk 00:15:18]}
{[%emt 00:00:02]} 5. b3 {[%clk 00:15:07]} {[%emt 00:00:13]} Be7 {[%clk
00:15:10]} {[%emt 00:00:12]} 6. Bb2 {[%clk 00:15:07]} {[%emt 00:00:05]} O-O
{[%clk 00:15:03]} {[%emt 00:00:13]} 7. c4 {[%clk 00:14:43]} {[%emt 00:00:29]}
bxc4 {[%clk 00:14:45]} {[%emt 00:00:24]} 8. bxc4 {[%clk 00:14:45]} {[%emt
00:00:02]} d5 {[%clk 00:13:58]} {[%emt 00:00:51]} 9. cxd5 {[%clk 00:14:40]}
{[%emt 00:00:10]} exd5 {[%clk 00:13:53]} {[%emt 00:00:11]} 10. d4 {[%clk
00:14:09]} {[%emt 00:00:36]} Nc6 {[%clk 00:13:36]} {[%emt 00:00:22]} 11. Nc3
{[%clk 00:13:39]} {[%emt 00:00:34]} Na5 {[%clk 00:11:34]} {[%emt 00:02:07]} 12.
Rb1 {[%clk 00:13:39]} {[%emt 00:00:06]} c5 {[%clk 00:10:39]} {[%emt 00:01:00]}
13. dxc5 {[%clk 00:12:56]} {[%emt 00:00:48]} Bxc5 {[%clk 00:10:22]} {[%emt
00:00:22]} 14. Na4 {[%clk 00:12:45]} {[%emt 00:00:16]} Bd6 {[%clk 00:09:49]}
{[%emt 00:00:38]} 15. Bc3 {[%clk 00:12:07]} {[%emt 00:00:43]} Ba6 {[%clk
00:08:40]} {[%emt 00:01:14]} 16. Nd4 {[%clk 00:09:31]} {[%emt 00:02:41]} Rc8
{[%clk 00:08:13]} {[%emt 00:00:32]} 17. Nf5 {[%clk 00:09:17]} {[%emt 00:00:19]}
Re8 {[%clk 00:06:20]} {[%emt 00:01:58]} 18. Bxa5 {[%clk 00:08:52]} {[%emt
00:00:30]} Qxa5 {[%clk 00:06:16]} {[%emt 00:00:09]} 19. Nxd6 {[%clk 00:08:52]}
{[%emt 00:00:05]} Bxe2 {[%clk 00:05:55]} {[%emt 00:00:26]} 20. Qd4 {[%clk
00:08:38]} {[%emt 00:00:19]} Bxf1 {[%clk 00:05:19]} {[%emt 00:00:40]} 21. Nxe8
{[%clk 00:08:40]} {[%emt 00:00:04]} Rxe8 {[%clk 00:03:58]} {[%emt 00:01:26]} 22.
Bxf1 {[%clk 00:08:08]} {[%emt 00:00:36]} Re4 {[%clk 00:02:47]} {[%emt
00:01:17]} 23. Rb8+ {[%clk 00:08:09]} {[%emt 00:00:04]} Ne8 {[%clk 00:02:50]}
{[%emt 00:00:02]} 24. Qxe4 {[%clk 00:08:12]} {[%emt 00:00:01]} 1-0

[Event "Open NK Rapid 2025 bord 26-50"]
[Site "Helmond, Netherlands"]
[Date "2025.05.03"]
[Round "2.11"]
[White "Chaganti, Prahasith Reddy"]
[Black "Thodam, Malte"]
[Result "0-1"]
[TimeControl "15 min +5 sec increment"]
[WhiteFideId "34697586"]
[BlackFideId "24687120"]
[WhiteElo "1799"]
[BlackElo "2044"]

1. e4 {[%clk 00:15:09]} e5 {[%clk 00:15:08]} {[%emt 00:00:03]} 2. Nf3 {[%clk
00:15:13]} {[%emt 00:00:01]} Nc6 {[%clk 00:15:13]} {[%emt 00:00:01]} 3. Bc4
{[%clk 00:15:16]} {[%emt 00:00:01]} Nf6 {[%clk 00:15:16]} {[%emt 00:00:02]} 4.
Ng5 {[%clk 00:15:20]} {[%emt 00:00:01]} d5 {[%clk 00:15:19]} {[%emt 00:00:02]}
5. exd5 {[%clk 00:15:24]} {[%emt 00:00:02]} Na5 {[%clk 00:15:22]} {[%emt
00:00:01]} 6. Bb5+ {[%clk 00:15:28]} c6 {[%clk 00:15:27]} 7. dxc6 {[%clk
00:15:32]} {[%emt 00:00:01]} bxc6 {[%clk 00:15:31]} {[%emt 00:00:01]} 8. Bd3
{[%clk 00:15:36]} Nd5 {[%clk 00:15:30]} {[%emt 00:00:05]} 9. Nf3 {[%clk
00:15:38]} {[%emt 00:00:03]} Bd6 {[%clk 00:15:09]} {[%emt 00:00:25]} 10. O-O
{[%clk 00:15:40]} {[%emt 00:00:04]} O-O {[%clk 00:15:12]} {[%emt 00:00:02]} 11.
Re1 {[%clk 00:15:43]} {[%emt 00:00:02]} Qc7 {[%clk 00:12:53]} {[%emt 00:02:25]}
12. Nc3 {[%clk 00:12:33]} {[%emt 00:03:14]} f5 {[%clk 00:12:43]} {[%emt
00:00:15]} 13. Bf1 {[%clk 00:12:04]} {[%emt 00:00:35]} e4 {[%clk 00:11:32]}
{[%emt 00:01:15]} 14. Nxd5 {[%clk 00:11:31]} {[%emt 00:00:37]} cxd5 {[%clk
00:11:22]} {[%emt 00:00:15]} 15. Nd4 {[%clk 00:11:33]} {[%emt 00:00:03]} Bxh2+
{[%clk 00:11:02]} {[%emt 00:00:25]} 16. Kh1 {[%clk 00:11:37]} {[%emt 00:00:02]}
Be5 {[%clk 00:10:09]} {[%emt 00:00:58]} 17. Nb5 {[%clk 00:11:38]} {[%emt
00:00:04]} Qd8 {[%clk 00:08:39]} {[%emt 00:01:35]} 18. g3 {[%clk 00:09:19]}
{[%emt 00:02:23]} f4 {[%clk 00:07:13]} {[%emt 00:01:31]} 19. d4 {[%clk
00:09:15]} {[%emt 00:00:10]} fxg3 {[%clk 00:06:34]} {[%emt 00:00:44]} 20. fxg3
{[%clk 00:08:12]} {[%emt 00:01:08]} Bxg3 {[%clk 00:06:16]} {[%emt 00:00:22]} 21.
Re2 {[%clk 00:08:01]} {[%emt 00:00:17]} Qh4+ {[%clk 00:05:33]} {[%emt
00:00:48]} 22. Kg1 {[%clk 00:07:57]} {[%emt 00:00:08]} Bg4 {[%emt 00:03:07]}
0-1

[Event "Open NK Rapid 2025 bord 26-50"]
[Site "Helmond, Netherlands"]
[Date "2025.05.03"]
[Round "2.12"]
[White "Aarts, Joaquin"]
[Black "Ngangbam, Chingthang"]
[Result "1-0"]
[TimeControl "15 min +5 sec increment"]
[WhiteFideId "1078224"]
[BlackFideId "1086510"]
[WhiteElo "2027"]
[BlackElo "1812"]

1. d4 {[%clk 00:15:08]} {[%emt 00:00:02]} Nf6 {[%clk 00:15:08]} {[%emt
00:00:03]} 2. c4 {[%clk 00:15:12]} {[%emt 00:00:01]} g6 {[%clk 00:15:11]}
{[%emt 00:00:02]} 3. Nc3 {[%clk 00:15:15]} {[%emt 00:00:02]} d5 {[%clk
00:15:14]} {[%emt 00:00:01]} 4. Bg5 {[%clk 00:15:18]} {[%emt 00:00:02]} Ne4
{[%clk 00:15:02]} {[%emt 00:00:17]} 5. Bf4 {[%clk 00:14:59]} {[%emt 00:00:24]}
Nxc3 {[%clk 00:15:01]} {[%emt 00:00:06]} 6. bxc3 {[%clk 00:15:02]} {[%emt
00:00:02]} Bg7 {[%clk 00:15:03]} {[%emt 00:00:03]} 7. Nf3 {[%clk 00:15:04]}
{[%emt 00:00:03]} O-O {[%clk 00:14:58]} {[%emt 00:00:10]} 8. e3 {[%clk
00:15:04]} {[%emt 00:00:05]} c5 {[%clk 00:14:56]} {[%emt 00:00:07]} 9. cxd5
{[%clk 00:15:01]} {[%emt 00:00:08]} Qxd5 {[%clk 00:14:57]} {[%emt 00:00:04]} 10.
Be2 {[%clk 00:14:41]} {[%emt 00:00:25]} Nc6 {[%clk 00:14:44]} {[%emt 00:00:19]}
11. O-O {[%clk 00:14:43]} {[%emt 00:00:02]} Bg4 {[%clk 00:13:57]} {[%emt
00:00:52]} 12. h3 {[%clk 00:14:28]} {[%emt 00:00:20]} Bxf3 {[%clk 00:13:58]}
{[%emt 00:00:04]} 13. Bxf3 {[%clk 00:14:31]} {[%emt 00:00:02]} Qd7 {[%clk
00:13:59]} {[%emt 00:00:05]} 14. Rb1 {[%clk 00:14:13]} {[%emt 00:00:22]} Rfd8
{[%clk 00:13:30]} {[%emt 00:00:35]} 15. d5 {[%clk 00:12:28]} {[%emt 00:01:46]}
Ne5 {[%clk 00:12:53]} {[%emt 00:00:45]} 16. Bxe5 {[%clk 00:12:28]} {[%emt
00:00:05]} Bxe5 {[%clk 00:12:53]} {[%emt 00:00:05]} 17. c4 {[%clk 00:12:31]}
{[%emt 00:00:02]} Rab8 {[%clk 00:12:21]} {[%emt 00:00:37]} 18. a4 {[%clk
00:12:10]} {[%emt 00:00:27]} b6 {[%clk 00:12:01]} {[%emt 00:00:25]} 19. e4
{[%clk 00:12:07]} {[%emt 00:00:08]} Bd4 {[%clk 00:10:45]} {[%emt 00:01:21]} 20.
Bg4 {[%clk 00:11:44]} {[%emt 00:00:27]} Qd6 {[%clk 00:10:44]} {[%emt 00:00:06]}
21. Kh1 {[%clk 00:11:46]} {[%emt 00:00:03]} Qf4 {[%clk 00:10:35]} {[%emt
00:00:14]} 22. Qc2 {[%clk 00:11:18]} {[%emt 00:00:32]} h5 {[%clk 00:10:25]}
{[%emt 00:00:16]} 23. g3 {[%clk 00:10:55]} {[%emt 00:00:28]} Qf6 {[%emt
00:00:51]} 24. Be2 {[%clk 00:10:55]} e5 {[%clk 00:08:30]} {[%emt 00:01:19]} 25.
Kg2 {[%clk 00:05:47]} {[%emt 00:05:13]} h4 {[%clk 00:08:06]} {[%emt 00:00:29]}
26. Bd3 {[%clk 00:05:39]} {[%emt 00:00:12]} g5 {[%clk 00:06:49]} {[%emt
00:01:23]} 27. Qe2 {[%clk 00:04:58]} {[%emt 00:00:44]} Kg7 {[%clk 00:05:47]}
{[%emt 00:01:09]} 28. Qg4 {[%clk 00:04:41]} {[%emt 00:00:21]} Qg6 {[%clk
00:04:28]} {[%emt 00:01:26]} 29. Rg1 {[%clk 00:02:46]} {[%emt 00:01:59]} Rh8
{[%clk 00:03:41]} {[%emt 00:00:53]} 30. Rgf1 {[%clk 00:01:31]} {[%emt
00:01:20]} Rh6 {[%clk 00:02:45]} {[%emt 00:01:01]} 31. Rh1 {[%clk 00:01:19]}
{[%emt 00:00:16]} Qf6 {[%clk 00:02:26]} {[%emt 00:00:25]} 32. Rbf1 {[%clk
00:01:16]} {[%emt 00:00:07]} Rg6 {[%clk 00:01:58]} {[%emt 00:00:34]} 33. Be2
{[%clk 00:01:00]} {[%emt 00:00:20]} Rh8 {[%clk 00:00:45]} {[%emt 00:01:18]} 34.
Qd7 {[%clk 00:00:59]} {[%emt 00:00:05]} a5 {[%clk 00:00:46]} {[%emt 00:00:05]}
35. Bg4 {[%clk 00:00:57]} {[%emt 00:00:07]} Rd8 {[%clk 00:00:40]} {[%emt
00:00:12]} 36. Qb5 {[%clk 00:00:52]} {[%emt 00:00:08]} Qd6 {[%clk 00:00:24]}
{[%emt 00:00:22]} 37. Rb1 {[%clk 00:00:42]} {[%emt 00:00:14]} Rf6 {[%clk
00:00:18]} {[%emt 00:00:12]} 38. Rhf1 {[%clk 00:00:23]} {[%emt 00:00:25]} Rb8
{[%clk 00:00:11]} {[%emt 00:00:10]} 39. Qb3 {[%clk 00:00:25]} {[%emt 00:00:03]}
Rd8 {[%clk 00:00:13]} {[%emt 00:00:04]} 40. Qc2 {[%clk 00:00:25]} {[%emt
00:00:05]} Rb8 {[%clk 00:00:11]} {[%emt 00:00:08]} 41. Qd2 {[%clk 00:00:24]}
{[%emt 00:00:05]} Kh6 {[%clk 00:00:06]} {[%emt 00:00:10]} 42. gxh4 {[%clk
00:00:10]} {[%emt 00:00:19]} Rg8 {[%clk 00:00:07]} {[%emt 00:00:04]} 43. hxg5+
{[%clk 00:00:13]} {[%emt 00:00:02]} Rxg5 {[%clk 00:00:09]} {[%emt 00:00:04]} 44.
h4 {[%clk 00:00:16]} {[%emt 00:00:01]} 1-0

[Event "Open NK Rapid 2025 bord 26-50"]
[Site "Helmond, Netherlands"]
[Date "2025.05.03"]
[Round "2.13"]
[White "Timmer, Michel"]
[Black "Grooten, Tommy"]
[Result "0-1"]
[TimeControl "15 min +5 sec increment"]
[WhiteFideId "40104524"]
[BlackFideId "1068806"]
[WhiteElo "1796"]
[BlackElo "2027"]

1. e4 {[%clk 00:15:08]} {[%emt 00:00:02]} c5 {[%clk 00:15:09]} {[%emt
00:00:01]} 2. c3 {[%clk 00:15:12]} {[%emt 00:00:02]} Nf6 {[%clk 00:15:13]}
{[%emt 00:00:01]} 3. e5 {[%clk 00:15:15]} {[%emt 00:00:02]} Nd5 {[%clk
00:15:18]} 4. Nf3 {[%clk 00:15:19]} {[%emt 00:00:02]} d6 {[%clk 00:15:22]} 5.
Bb5+ {[%clk 00:15:19]} {[%emt 00:00:04]} Bd7 {[%clk 00:15:21]} {[%emt
00:00:06]} 6. Bc4 {[%clk 00:15:19]} {[%emt 00:00:05]} e6 {[%clk 00:15:25]}
{[%emt 00:00:02]} 7. O-O {[%clk 00:14:42]} {[%emt 00:00:42]} Nc6 {[%clk
00:15:26]} {[%emt 00:00:03]} 8. d4 {[%clk 00:14:36]} {[%emt 00:00:12]} cxd4
{[%clk 00:15:22]} {[%emt 00:00:09]} 9. Bxd5 {[%clk 00:14:05]} {[%emt 00:00:36]}
exd5 {[%clk 00:15:25]} {[%emt 00:00:01]} 10. Bf4 {[%clk 00:14:00]} {[%emt
00:00:10]} dxe5 {[%clk 00:15:01]} {[%emt 00:00:30]} 11. Bxe5 {[%clk 00:13:15]}
{[%emt 00:00:50]} Nxe5 {[%clk 00:14:56]} {[%emt 00:00:10]} 12. Nxe5 {[%clk
00:13:18]} {[%emt 00:00:01]} Be7 {[%clk 00:14:55]} {[%emt 00:00:06]} 13. Qxd4
{[%clk 00:13:20]} {[%emt 00:00:03]} Be6 {[%clk 00:14:55]} {[%emt 00:00:06]} 14.
Nd2 {[%clk 00:11:58]} {[%emt 00:01:27]} O-O {[%clk 00:14:55]} {[%emt 00:00:05]}
15. Rfe1 {[%clk 00:11:38]} {[%emt 00:00:24]} Qc7 {[%clk 00:14:23]} {[%emt
00:00:37]} 16. Nb3 {[%clk 00:10:22]} {[%emt 00:01:21]} Rfe8 {[%clk 00:14:13]}
{[%emt 00:00:15]} 17. Nf3 {[%clk 00:09:21]} {[%emt 00:01:06]} Bf6 {[%clk
00:14:14]} {[%emt 00:00:04]} 18. Qd3 {[%clk 00:09:03]} {[%emt 00:00:23]} Qb6
{[%clk 00:13:53]} {[%emt 00:00:26]} 19. Qc2 {[%clk 00:07:38]} {[%emt 00:01:31]}
Rac8 {[%clk 00:13:53]} {[%emt 00:00:05]} 20. Rad1 {[%clk 00:07:37]} {[%emt
00:00:05]} g6 {[%clk 00:13:31]} {[%emt 00:00:27]} 21. Nbd4 {[%clk 00:07:26]}
{[%emt 00:00:17]} Bg4 {[%clk 00:13:32]} {[%emt 00:00:04]} 22. Rxe8+ {[%clk
00:05:05]} {[%emt 00:02:26]} Rxe8 {[%clk 00:13:36]} {[%emt 00:00:01]} 23. h3
{[%clk 00:03:51]} {[%emt 00:01:19]} Bd7 {[%clk 00:13:27]} {[%emt 00:00:13]} 24.
Qb3 {[%clk 00:03:41]} {[%emt 00:00:16]} Qxb3 {[%clk 00:13:10]} {[%emt
00:00:22]} 25. Nxb3 {[%clk 00:03:30]} {[%emt 00:00:15]} Bc6 {[%clk 00:12:43]}
{[%emt 00:00:33]} 26. Nbd4 {[%clk 00:03:03]} {[%emt 00:00:33]} Ba4 {[%clk
00:12:37]} {[%emt 00:00:10]} 27. Rd2 {[%clk 00:02:44]} {[%emt 00:00:24]} b6
{[%clk 00:12:07]} {[%emt 00:00:35]} 28. Ne2 {[%clk 00:02:29]} {[%emt 00:00:19]}
Bc6 {[%clk 00:11:39]} {[%emt 00:00:33]} 29. Ned4 {[%clk 00:02:22]} {[%emt
00:00:12]} Bb7 {[%clk 00:11:32]} {[%emt 00:00:12]} 30. Nb5 {[%clk 00:02:24]}
{[%emt 00:00:03]} Rd8 {[%clk 00:11:22]} {[%emt 00:00:16]} 31. a3 {[%clk
00:01:52]} {[%emt 00:00:37]} a6 {[%clk 00:11:12]} {[%emt 00:00:14]} 32. Nbd4
{[%clk 00:01:53]} {[%emt 00:00:05]} Kg7 {[%clk 00:11:06]} {[%emt 00:00:11]} 33.
Nh2 {[%clk 00:01:23]} {[%emt 00:00:34]} h5 {[%clk 00:11:01]} {[%emt 00:00:10]}
34. g4 {[%clk 00:01:17]} {[%emt 00:00:11]} Re8 {[%clk 00:10:54]} {[%emt
00:00:13]} 35. Kg2 {[%clk 00:00:55]} {[%emt 00:00:26]} hxg4 {[%clk 00:10:37]}
{[%emt 00:00:22]} 36. hxg4 {[%clk 00:00:38]} {[%emt 00:00:22]} Bg5 {[%clk
00:10:32]} {[%emt 00:00:11]} 37. Rc2 {[%clk 00:00:13]} {[%emt 00:00:30]} Re4
{[%clk 00:10:22]} {[%emt 00:00:14]} 38. f3 {[%clk 00:00:13]} {[%emt 00:00:06]}
Re1 {[%clk 00:10:22]} {[%emt 00:00:04]} 39. Nf1 {[%clk 00:00:08]} {[%emt
00:00:11]} Bc8 {[%clk 00:09:53]} {[%emt 00:00:34]} 40. Nd2 {[%clk 00:00:10]}
{[%emt 00:00:03]} Bd7 {[%clk 00:09:42]} {[%emt 00:00:15]} 41. N2b3 {[%clk
00:00:08]} {[%emt 00:00:07]} Ba4 {[%clk 00:09:39]} {[%emt 00:00:08]} 42. Kf2
{[%clk 00:00:08]} {[%emt 00:00:06]} Bh4+ {[%clk 00:09:43]} {[%emt 00:00:01]} 43.
Kg2 {[%clk 00:00:10]} {[%emt 00:00:03]} Bf6 {[%clk 00:09:31]} {[%emt 00:00:16]}
44. Rd2 {[%clk 00:00:13]} {[%emt 00:00:02]} Bg5 {[%clk 00:09:25]} {[%emt
00:00:11]} 45. Rc2 {[%clk 00:00:17]} {[%emt 00:00:01]} Bf4 {[%clk 00:08:51]}
{[%emt 00:00:40]} 46. Rf2 {[%clk 00:00:10]} {[%emt 00:00:11]} Rb1 {[%clk
00:08:28]} {[%emt 00:00:28]} 47. Re2 {[%clk 00:00:00]} {[%emt 00:00:10]} 0-1

[Event "Open NK Rapid 2025 bord 26-50"]
[Site "Helmond, Netherlands"]
[Date "2025.05.03"]
[Round "2.14"]
[White "Alhasan, Husam"]
[Black "Klein, Ron"]
[Result "0-1"]
[TimeControl "15 min +5 sec increment"]
[WhiteFideId "11515090"]
[BlackFideId "1014668"]
[WhiteElo "1795"]
[BlackElo "2014"]

1. d4 {[%clk 00:15:07]} {[%emt 00:00:02]} d5 {[%clk 00:14:57]} {[%emt
00:00:13]} 2. c4 {[%clk 00:15:11]} {[%emt 00:00:01]} c6 {[%clk 00:15:00]}
{[%emt 00:00:03]} 3. Nc3 {[%clk 00:15:12]} {[%emt 00:00:03]} Nf6 {[%clk
00:14:57]} {[%emt 00:00:07]} 4. e3 {[%clk 00:14:40]} {[%emt 00:00:38]} Bf5
{[%clk 00:14:39]} {[%emt 00:00:23]} 5. Nf3 {[%clk 00:14:23]} {[%emt 00:00:22]}
e6 {[%clk 00:14:37]} {[%emt 00:00:07]} 6. h3 {[%clk 00:13:37]} {[%emt
00:00:51]} Nbd7 {[%clk 00:14:24]} {[%emt 00:00:18]} 7. Be2 {[%clk 00:13:22]}
{[%emt 00:00:19]} Be7 {[%clk 00:13:57]} {[%emt 00:00:33]} 8. g4 {[%clk
00:12:52]} {[%emt 00:00:35]} Bg6 {[%clk 00:13:55]} {[%emt 00:00:07]} 9. Nh4
{[%clk 00:12:20]} {[%emt 00:00:36]} Qc7 {[%clk 00:13:04]} {[%emt 00:00:58]} 10.
a3 {[%clk 00:11:10]} {[%emt 00:01:15]} a5 {[%clk 00:12:50]} {[%emt 00:00:19]}
11. Bd2 {[%clk 00:11:00]} {[%emt 00:00:14]} Ne4 {[%clk 00:12:21]} {[%emt
00:00:34]} 12. Nxg6 {[%clk 00:09:50]} {[%emt 00:01:15]} Nxc3 {[%clk 00:12:17]}
{[%emt 00:00:09]} 13. Bxc3 {[%clk 00:09:25]} {[%emt 00:00:30]} hxg6 {[%clk
00:12:19]} {[%emt 00:00:03]} 14. cxd5 {[%clk 00:08:50]} {[%emt 00:00:41]} exd5
{[%clk 00:12:09]} {[%emt 00:00:15]} 15. Bd3 {[%clk 00:08:15]} {[%emt 00:00:40]}
Bd6 {[%clk 00:08:19]} {[%emt 00:03:55]} 16. Qe2 {[%clk 00:06:38]} {[%emt
00:01:41]} Nf6 {[%clk 00:07:18]} {[%emt 00:01:06]} 17. f4 {[%clk 00:06:23]}
{[%emt 00:00:21]} Ne4 {[%clk 00:06:00]} {[%emt 00:01:23]} 18. Bxe4 {[%clk
00:04:58]} {[%emt 00:01:30]} dxe4 {[%clk 00:06:02]} {[%emt 00:00:02]} 19. d5
{[%clk 00:04:54]} {[%emt 00:00:09]} Rh7 {[%clk 00:04:13]} {[%emt 00:01:54]} 20.
dxc6 {[%clk 00:04:26]} {[%emt 00:00:33]} Qxc6 {[%clk 00:03:52]} {[%emt
00:00:25]} 21. Rc1 {[%clk 00:04:10]} {[%emt 00:00:22]} Qa6 {[%clk 00:03:09]}
{[%emt 00:00:48]} 22. Qc2 {[%clk 00:03:39]} {[%emt 00:00:36]} Qd3 {[%clk
00:01:50]} {[%emt 00:01:24]} 23. Qxd3 {[%clk 00:02:55]} {[%emt 00:00:50]} exd3
{[%clk 00:01:53]} {[%emt 00:00:01]} 24. Kd2 {[%clk 00:02:58]} {[%emt 00:00:02]}
a4 {[%clk 00:01:11]} {[%emt 00:00:47]} 25. Kxd3 {[%clk 00:02:33]} {[%emt
00:00:31]} f5 {[%clk 00:01:09]} {[%emt 00:00:07]} 26. Ke2 {[%clk 00:02:21]}
{[%emt 00:00:16]} Ke7 {[%clk 00:01:05]} {[%emt 00:00:10]} 27. Kf3 {[%clk
00:01:57]} {[%emt 00:00:29]} Rah8 {[%clk 00:00:59]} {[%emt 00:00:11]} 28. Kg2
{[%clk 00:01:37]} {[%emt 00:00:24]} fxg4 {[%clk 00:00:23]} {[%emt 00:00:41]} 29.
hxg4 {[%clk 00:01:40]} {[%emt 00:00:03]} Rxh1 {[%clk 00:00:23]} {[%emt
00:00:05]} 30. Rxh1 {[%clk 00:01:43]} {[%emt 00:00:02]} Rxh1 {[%clk 00:00:25]}
{[%emt 00:00:03]} 31. Kxh1 {[%clk 00:01:45]} {[%emt 00:00:02]} Bc5 {[%clk
00:00:26]} {[%emt 00:00:04]} 32. Bd4 {[%clk 00:01:48]} {[%emt 00:00:03]} Bxd4
{[%clk 00:00:27]} {[%emt 00:00:04]} 33. exd4 {[%clk 00:01:51]} {[%emt
00:00:01]} Kd6 {[%clk 00:00:31]} 34. Kg2 {[%clk 00:01:48]} {[%emt 00:00:08]}
Kd5 {[%clk 00:00:35]} {[%emt 00:00:02]} 35. Kf3 {[%clk 00:01:48]} {[%emt
00:00:05]} Kxd4 {[%clk 00:00:37]} {[%emt 00:00:02]} 36. f5 {[%clk 00:01:13]}
{[%emt 00:00:40]} g5 {[%clk 00:00:35]} {[%emt 00:00:08]} 37. Ke2 {[%clk
00:01:06]} {[%emt 00:00:12]} Kc4 {[%clk 00:00:29]} {[%emt 00:00:15]} 38. Ke3
{[%clk 00:01:07]} Kb3 {[%clk 00:00:31]} {[%emt 00:00:03]} 39. Ke4 {[%clk
00:00:20]} {[%emt 00:00:51]} Kxb2 {[%clk 00:00:33]} {[%emt 00:00:03]} 40. Ke5
{[%clk 00:00:24]} {[%emt 00:00:02]} Kxa3 {[%clk 00:00:35]} {[%emt 00:00:03]} 41.
f6 {[%clk 00:00:28]} gxf6+ {[%clk 00:00:34]} {[%emt 00:00:06]} 42. Kxf6 {[%clk
00:00:32]} {[%emt 00:00:01]} b5 {[%clk 00:00:35]} {[%emt 00:00:05]} 43. Kxg5
{[%clk 00:00:35]} {[%emt 00:00:01]} b4 {[%clk 00:00:39]} {[%emt 00:00:01]} 44.
Kh6 {[%clk 00:00:38]} {[%emt 00:00:03]} b3 {[%clk 00:00:42]} {[%emt 00:00:02]}
45. g5 {[%clk 00:00:42]} b2 {[%clk 00:00:45]} {[%emt 00:00:02]} 46. g6 {[%clk
00:00:46]} {[%emt 00:00:01]} b1=Q {[%clk 00:00:46]} {[%emt 00:00:04]} 47. g7
{[%clk 00:00:49]} {[%emt 00:00:02]} Qb3 {[%clk 00:00:39]} {[%emt 00:00:12]} 0-1